{"text_format":"2","workbook":"xlsx","n_sheets":2,"sheets":["Chi phí dự kiến","Tổng hợp"],"not_rendered":{"charts":0,"images":0,"macros":0,"external_links":0,"defined_names":1,"comments":0,"pivot_tables":0},"unopened":[],"bounds":{"document_bytes":16777216,"sheet_cells":100000,"run_cost":"one","rows_first":2000,"rows_last":500,"rows_between":2000,"halvings":0,"cell_chars":16384,"cell_head_chars":4096},"cells_cut":0,"cells_raw":0,"read":"whole","date_system":"1900"}

{"sheet":"Chi phí dự kiến","index":0,"n_rows":171,"n_cols":12,"rows_kept":171,"cut":false,"hidden":false,"merged":[[152,0,152,11],[53,0,53,11],[73,0,73,11],[93,0,93,11],[113,0,113,11],[133,0,133,11],[30,0,30,11],[11,0,11,11],[9,0,9,11],[31,0,31,11],[33,0,33,11],[0,1,0,10],[1,1,1,10],[2,1,2,10],[4,8,5,10],[7,1,7,10]]}
[]
[null,"BIỂU MẪU SỐ 04/ĐGTĐ-SCM. TÍNH CHI PHÍ TUÂN THỦ THỦ TỤC HÀNH CHÍNH TRONG DỰ ÁN, DỰ THẢO  VĂN BẢN"]
[]
[]
[null,"BỘ CÔNG AN",{"$nulls":6},"Biểu mẫu 04/ĐGTĐ-SCM"]
[]
[]
[null,"CHI PHÍ TUÂN THỦ THỦ TỤC HÀNH CHÍNH TRONG DỰ ÁN, DỰ THẢO"]
[]
["TÊN DỰ THẢO VĂN BẢN: LUẬT ĐỊNH DANH VÀ XÁC THỰC ĐIỆN TỬ"]
[]
["THỦ TỤC HÀNH CHÍNH 1: Đăng ký định danh điện tử"]
["I.","CHI PHÍ THỰC HIỆN TTHC DỰ KIẾN BAN HÀNH MỚI"]
[]
["STT","Các công việc \nkhi thực hiện TTHC","Các hoạt động/ cách thức thực hiện cụ thể","Thời gian thực hiện (giờ)","Mức TNBQ/ 01 giờ làm việc (đồng)","Mức chi phí thuê tư vấn, dịch vụ (đồng)","Mức phí, lệ phí, chi phí khác (đồng)","Số lần thực hiện/ 01 năm","Số lượng đối tượng tuân thủ/01 năm","Chi phí thực hiện TTHC (đồng)","Tổng chi phí thực hiện TTHC/\n01 năm (đồng)","Ghi chú"]
[1,"Chuẩn bị hồ sơ"]
[null,"Cá nhân, tổ chức chuẩn bị hồ sơ theo quy định để chứng minh đối tượng đăng ký định danh điện tử","Chuẩn bị hồ sơ",2,58228,null,null,1,100000000,{"$f":"G17+F17+(D17*E17)","v":116456},{"$f":"J17*I17*H17","v":11645600000000}]
[2,"Nộp hồ sơ","Trực tiếp",2,58228,null,null,1,50000000,{"$f":"G18+F18+(D18*E18)","v":116456},{"$f":"J18*I18*H18","v":5822800000000}]
[null,null,"Bưu chính",0,58228,null,null,1,null,0,0]
[null,null,"Điện tử",0.5,58228,null,null,1,50000000,29114,1455700000000]
[3,"Nộp phí, lệ phí, chi phí khác",null,null,58228,null,null,1,100000000,0,0]
["3.1","Phí",null,0,58228,null,null,1,100000000,0,0]
["3.2","Lệ phí",null,0,58228,null,null,1,100000000,0,0]
["3.3","Chi phí khác",null,0,58228,null,null,1,100000000,0,0]
[4,"Chuẩn bị, phục vụ việc kiểm tra, đánh giá của cơ quan có thẩm quyền (nếu có)",null,0,58228,null,null,1,100000000,0,0]
[5,"Công việc khác (nếu có)",null,0,58228,null,null,1,100000000,0,0]
[6,"Nhận kết quả","Trực tiếp",2,58228,null,null,1,100000000,116456,11645600000000]
[null,null,"Bưu chính",0,58228,null,null,1,100000000,0,0]
[null,null,"Điện tử",0.1,58228,null,null,1,100000000,5822.8,582280000000]
[null,"TỔNG",null,null,null,{"$f":"SUM(F17:F25)","v":0},{"$f":"SUM(G17:G25)","v":0},null,null,{"$f":"SUM(J17:J29)","v":384304.8},{"$f":"SUM(K17:K29)","v":31151980000000}]
["Cách quy đổi chi phí thời gian ra tiền mặt để tính chi phí tuân thủ của đối tượng thực hiện TTHC: Mức thu nhập bình quân 01 người 01 giờ làm việc = Tổng sản phẩm trong nước (theo thống kê của năm gần nhất) / [(Số dân tương ứng năm thống kê) x 12 tháng x 22 ngày làm việc x 08 giờ làm việc)]."]
["Theo số liệu của Tổng cục Thống kê, GDP năm 2025 đạt 12.847,6 nghìn tỷ đồng; tổng dân số năm 2025 là 102,3 triệu. Do đó, chi phí trung bình cho 01 giờ làm việc của đối tượng thực hiện TTHC là khoảng 58.228 đồng/giờ làm việc."]
[]
["THỦ TỤC HÀNH CHÍNH 2: Tạm dừng hiệu lực danh tính điện tử"]
["I.","CHI PHÍ THỰC HIỆN TTHC DỰ KIẾN BAN HÀNH MỚI"]
[]
["STT","Các công việc \nkhi thực hiện TTHC","Các hoạt động/ cách thức thực hiện cụ thể","Thời gian thực hiện (giờ)","Mức TNBQ/ 01 giờ làm việc (đồng)","Mức chi phí thuê tư vấn, dịch vụ (đồng)","Mức phí, lệ phí, chi phí khác (đồng)","Số lần thực hiện/ 01 năm","Số lượng đối tượng tuân thủ/01 năm","Chi phí thực hiện TTHC (đồng)","Tổng chi phí thực hiện TTHC/\n01 năm (đồng)","Ghi chú"]
[1,"Chuẩn bị hồ sơ"]
[null,"Cá nhân, tổ chức chuẩn bị hồ sơ theo quy định","Chuẩn bị hồ sơ",1,58228,null,null,1,200,{"$f":"G39+F39+(D39*E39)","v":58228},{"$f":"J39*I39*H39","v":11645600}]
[2,"Nộp hồ sơ","Trực tiếp",0,58228,null,null,1,200,{"$f":"G40+F40+(D40*E40)","v":0},{"$f":"J40*I40*H40","v":0}]
[null,null,"Bưu chính",0,58228,null,null,1,200,0,0]
[null,null,"Điện tử",0.5,58228,null,null,1,200,29114,5822800]
[3,"Nộp phí, lệ phí, chi phí khác",null,null,58228,null,null,1,200,0,0]
["3.1","Phí",null,0,58228,null,null,1,200,0,0]
["3.2","Lệ phí",null,0,58228,null,null,1,200,0,0]
["3.3","Chi phí khác",null,0,58228,null,null,1,200,0,0]
[4,"Chuẩn bị, phục vụ việc kiểm tra, đánh giá của cơ quan có thẩm quyền (nếu có)",null,0,58228,null,null,1,200,0,0]
[5,"Công việc khác (nếu có)",null,0,58228,null,null,1,200,0,0]
[6,"Nhận kết quả","Trực tiếp",0,58228,null,null,1,200,0,0]
[null,null,"Bưu chính",0,58228,null,null,1,200,0,0]
[null,null,"Điện tử",0.1,58228,null,null,1,200,5822.8,1164560]
[null,"TỔNG",null,null,null,{"$f":"SUM(F39:F47)","v":0},{"$f":"SUM(G39:G47)","v":0},null,null,{"$f":"SUM(J39:J51)","v":93164.800000000003},{"$f":"SUM(K39:K51)","v":18632960}]
[]
["THỦ TỤC HÀNH CHÍNH 3: Khôi phục danh tính điện tử"]
["I.","CHI PHÍ THỰC HIỆN TTHC DỰ KIẾN BAN HÀNH MỚI"]
[]
["STT","Các công việc \nkhi thực hiện TTHC","Các hoạt động/ cách thức thực hiện cụ thể","Thời gian thực hiện (giờ)","Mức TNBQ/ 01 giờ làm việc (đồng)","Mức chi phí thuê tư vấn, dịch vụ (đồng)","Mức phí, lệ phí, chi phí khác (đồng)","Số lần thực hiện/ 01 năm","Số lượng đối tượng tuân thủ/01 năm","Chi phí thực hiện TTHC (đồng)","Tổng chi phí thực hiện TTHC/\n01 năm (đồng)","Ghi chú"]
[1,"Chuẩn bị hồ sơ"]
[null,"Cá nhân, tổ chức chuẩn bị hồ sơ chứng minh để đề nghị khôi phục danh tính điện tử","Chuẩn bị hồ sơ",3,58228,null,null,1,200,{"$f":"G59+F59+(D59*E59)","v":174684},{"$f":"J59*I59*H59","v":34936800}]
[2,"Nộp hồ sơ","Trực tiếp",2,58228,null,null,1,100,{"$f":"G60+F60+(D60*E60)","v":116456},{"$f":"J60*I60*H60","v":11645600}]
[null,null,"Bưu chính",0,58228,null,null,1,null,0,0]
[null,null,"Điện tử",0.5,58228,null,null,1,100,29114,2911400]
[3,"Nộp phí, lệ phí, chi phí khác",null,null,58228,null,null,1,200,0,0]
["3.1","Phí",null,0,58228,null,null,1,200,0,0]
["3.2","Lệ phí",null,0,58228,null,null,1,200,0,0]
["3.3","Chi phí khác",null,0,58228,null,null,1,200,0,0]
[4,"Chuẩn bị, phục vụ việc kiểm tra, đánh giá của cơ quan có thẩm quyền (nếu có)",null,0,58228,null,null,1,200,0,0]
[5,"Công việc khác (nếu có)",null,0,58228,null,null,1,200,0,0]
[6,"Nhận kết quả","Trực tiếp",0,58228,null,null,1,200,0,0]
[null,null,"Bưu chính",0,58228,null,null,1,200,0,0]
[null,null,"Điện tử",0.1,58228,null,null,1,200,5822.8,1164560]
[null,"TỔNG",null,null,null,{"$f":"SUM(F59:F67)","v":0},{"$f":"SUM(G59:G67)","v":0},null,null,{"$f":"SUM(J59:J71)","v":326076.79999999999},{"$f":"SUM(K59:K71)","v":50658360}]
[]
["THỦ TỤC HÀNH CHÍNH 4: Chấm dứt danh tính điện tử"]
["I.","CHI PHÍ THỰC HIỆN TTHC DỰ KIẾN BAN HÀNH MỚI"]
[]
["STT","Các công việc \nkhi thực hiện TTHC","Các hoạt động/ cách thức thực hiện cụ thể","Thời gian thực hiện (giờ)","Mức TNBQ/ 01 giờ làm việc (đồng)","Mức chi phí thuê tư vấn, dịch vụ (đồng)","Mức phí, lệ phí, chi phí khác (đồng)","Số lần thực hiện/ 01 năm","Số lượng đối tượng tuân thủ/01 năm","Chi phí thực hiện TTHC (đồng)","Tổng chi phí thực hiện TTHC/\n01 năm (đồng)","Ghi chú"]
[1,"Chuẩn bị hồ sơ"]
[null,"Cá nhân, tổ chức chuẩn bị hồ sơ đề nghị chấm dứt danh tính điện tử","Chuẩn bị hồ sơ",1,58228,null,null,1,500,{"$f":"G79+F79+(D79*E79)","v":58228},{"$f":"J79*I79*H79","v":29114000}]
[2,"Nộp hồ sơ","Trực tiếp",2,58228,null,null,1,200,{"$f":"G80+F80+(D80*E80)","v":116456},{"$f":"J80*I80*H80","v":23291200}]
[null,null,"Bưu chính",0,58228,null,null,1,null,0,0]
[null,null,"Điện tử",0.5,58228,null,null,1,300,29114,8734200]
[3,"Nộp phí, lệ phí, chi phí khác",null,null,58228,null,null,1,500,0,0]
["3.1","Phí",null,0,58228,null,null,1,500,0,0]
["3.2","Lệ phí",null,0,58228,null,null,1,500,0,0]
["3.3","Chi phí khác",null,0,58228,null,null,1,500,0,0]
[4,"Chuẩn bị, phục vụ việc kiểm tra, đánh giá của cơ quan có thẩm quyền (nếu có)",null,0,58228,null,null,1,500,0,0]
[5,"Công việc khác (nếu có)",null,0,58228,null,null,1,500,0,0]
[6,"Nhận kết quả","Trực tiếp",0,58228,null,null,1,500,0,0]
[null,null,"Bưu chính",0,58228,null,null,1,500,0,0]
[null,null,"Điện tử",0.1,58228,null,null,1,500,5822.8,2911400]
[null,"TỔNG",null,null,null,{"$f":"SUM(F79:F87)","v":0},{"$f":"SUM(G79:G87)","v":0},null,null,{"$f":"SUM(J79:J91)","v":209620.8},{"$f":"SUM(K79:K91)","v":64050800}]
[]
["THỦ TỤC HÀNH CHÍNH 5: Cấp chứng thư điện tử xác nhận thông tin"]
["I.","CHI PHÍ THỰC HIỆN TTHC DỰ KIẾN BAN HÀNH MỚI"]
[]
["STT","Các công việc \nkhi thực hiện TTHC","Các hoạt động/ cách thức thực hiện cụ thể","Thời gian thực hiện (giờ)","Mức TNBQ/ 01 giờ làm việc (đồng)","Mức chi phí thuê tư vấn, dịch vụ (đồng)","Mức phí, lệ phí, chi phí khác (đồng)","Số lần thực hiện/ 01 năm","Số lượng đối tượng tuân thủ/01 năm","Chi phí thực hiện TTHC (đồng)","Tổng chi phí thực hiện TTHC/\n01 năm (đồng)","Ghi chú"]
[1,"Chuẩn bị hồ sơ"]
[null,"Cá nhân, tổ chức chuẩn bị hồ sơ đề nghị cấp chứng thư điện tử xác nhận thông tin theo quy định","Chuẩn bị hồ sơ",2,58228,null,null,1,100000000,{"$f":"G99+F99+(D99*E99)","v":116456},{"$f":"J99*I99*H99","v":11645600000000}]
[2,"Nộp hồ sơ","Trực tiếp",2,58228,null,null,1,50000000,{"$f":"G100+F100+(D100*E100)","v":116456},{"$f":"J100*I100*H100","v":5822800000000}]
[null,null,"Bưu chính",0,58228,null,null,1,null,0,0]
[null,null,"Điện tử",0.5,58228,null,null,1,100000000,29114,2911400000000]
[3,"Nộp phí, lệ phí, chi phí khác",null,null,58228,null,null,1,100000000,0,0]
["3.1","Phí",null,0,58228,null,null,1,100000000,0,0]
["3.2","Lệ phí",null,0,58228,null,null,1,100000000,0,0]
["3.3","Chi phí khác",null,0,58228,null,null,1,100000000,0,0]
[4,"Chuẩn bị, phục vụ việc kiểm tra, đánh giá của cơ quan có thẩm quyền (nếu có)",null,0,58228,null,null,1,100000000,0,0]
[5,"Công việc khác (nếu có)",null,0,58228,null,null,1,100000000,0,0]
[6,"Nhận kết quả","Trực tiếp",0,58228,null,null,1,100000000,0,0]
[null,null,"Bưu chính",0,58228,null,null,1,100000000,0,0]
[null,null,"Điện tử",0.1,58228,null,null,1,100000000,5822.8,582280000000]
[null,"TỔNG",null,null,null,{"$f":"SUM(F99:F107)","v":0},{"$f":"SUM(G99:G107)","v":0},null,null,{"$f":"SUM(J99:J111)","v":267848.8},{"$f":"SUM(K99:K111)","v":20962080000000}]
[]
["THỦ TỤC HÀNH CHÍNH 6: Gia hạn chứng thư điện tử xác nhận thông tin"]
["I.","CHI PHÍ THỰC HIỆN TTHC DỰ KIẾN BAN HÀNH MỚI"]
[]
["STT","Các công việc \nkhi thực hiện TTHC","Các hoạt động/ cách thức thực hiện cụ thể","Thời gian thực hiện (giờ)","Mức TNBQ/ 01 giờ làm việc (đồng)","Mức chi phí thuê tư vấn, dịch vụ (đồng)","Mức phí, lệ phí, chi phí khác (đồng)","Số lần thực hiện/ 01 năm","Số lượng đối tượng tuân thủ/01 năm","Chi phí thực hiện TTHC (đồng)","Tổng chi phí thực hiện TTHC/\n01 năm (đồng)","Ghi chú"]
[1,"Chuẩn bị hồ sơ"]
[null,"Cá nhân, tổ chức chuẩn bị hồ sơ đề nghị gia hạn chứng thư điện tử xác nhận thông tin theo quy định","Chuẩn bị hồ sơ",2,58228,null,null,1,2000000,{"$f":"G119+F119+(D119*E119)","v":116456},{"$f":"J119*I119*H119","v":232912000000}]
[2,"Nộp hồ sơ","Trực tiếp",2,58228,null,null,1,0,{"$f":"G120+F120+(D120*E120)","v":116456},{"$f":"J120*I120*H120","v":0}]
[null,null,"Bưu chính",0,58228,null,null,1,null,0,0]
[null,null,"Điện tử",0.5,58228,null,null,1,2000000,29114,58228000000]
[3,"Nộp phí, lệ phí, chi phí khác",null,null,58228,null,null,1,2000000,0,0]
["3.1","Phí",null,0,58228,null,null,1,2000000,0,0]
["3.2","Lệ phí",null,0,58228,null,null,1,2000000,0,0]
["3.3","Chi phí khác",null,0,58228,null,null,1,2000000,0,0]
[4,"Chuẩn bị, phục vụ việc kiểm tra, đánh giá của cơ quan có thẩm quyền (nếu có)",null,0,58228,null,null,1,2000000,0,0]
[5,"Công việc khác (nếu có)",null,0,58228,null,null,1,2000000,0,0]
[6,"Nhận kết quả","Trực tiếp",0,58228,null,null,1,2000000,0,0]
[null,null,"Bưu chính",0,58228,null,null,1,2000000,0,0]
[null,null,"Điện tử",0.1,58228,null,null,1,2000000,5822.8,11645600000]
[null,"TỔNG",null,null,null,{"$f":"SUM(F119:F127)","v":0},{"$f":"SUM(G119:G127)","v":0},null,null,{"$f":"SUM(J119:J131)","v":267848.8},{"$f":"SUM(K119:K131)","v":302785600000}]
[]
["THỦ TỤC HÀNH CHÍNH 7: Vô hiệu hóa chứng thư điện tử xác nhận thông tin"]
["I.","CHI PHÍ THỰC HIỆN TTHC DỰ KIẾN BAN HÀNH MỚI"]
[]
["STT","Các công việc \nkhi thực hiện TTHC","Các hoạt động/ cách thức thực hiện cụ thể","Thời gian thực hiện (giờ)","Mức TNBQ/ 01 giờ làm việc (đồng)","Mức chi phí thuê tư vấn, dịch vụ (đồng)","Mức phí, lệ phí, chi phí khác (đồng)","Số lần thực hiện/ 01 năm","Số lượng đối tượng tuân thủ/01 năm","Chi phí thực hiện TTHC (đồng)","Tổng chi phí thực hiện TTHC/\n01 năm (đồng)","Ghi chú"]
[1,"Chuẩn bị hồ sơ"]
[null,"Cá nhân, tổ chức chuẩn bị hồ sơ đề nghị vô hiệu hóa chứng thư điện tử xác nhận thông tin theo quy định","Chuẩn bị hồ sơ",2,58228,null,null,1,500,{"$f":"G139+F139+(D139*E139)","v":116456},{"$f":"J139*I139*H139","v":58228000}]
[2,"Nộp hồ sơ","Trực tiếp",2,58228,null,null,1,0,{"$f":"G140+F140+(D140*E140)","v":116456},{"$f":"J140*I140*H140","v":0}]
[null,null,"Bưu chính",0,58228,null,null,1,null,0,0]
[null,null,"Điện tử",0.5,58228,null,null,1,500,29114,14557000]
[3,"Nộp phí, lệ phí, chi phí khác",null,null,58228,null,null,1,500,0,0]
["3.1","Phí",null,0,58228,null,null,1,500,0,0]
["3.2","Lệ phí",null,0,58228,null,null,1,500,0,0]
["3.3","Chi phí khác",null,0,58228,null,null,1,500,0,0]
[4,"Chuẩn bị, phục vụ việc kiểm tra, đánh giá của cơ quan có thẩm quyền (nếu có)",null,0,58228,null,null,1,500,0,0]
[5,"Công việc khác (nếu có)",null,0,58228,null,null,1,500,0,0]
[6,"Nhận kết quả","Trực tiếp",0,58228,null,null,1,500,0,0]
[null,null,"Bưu chính",0,58228,null,null,1,500,0,0]
[null,null,"Điện tử",0.1,58228,null,null,1,500,5822.8,2911400]
[null,"TỔNG",null,null,null,{"$f":"SUM(F139:F147)","v":0},{"$f":"SUM(G139:G147)","v":0},null,null,{"$f":"SUM(J139:J151)","v":267848.8},{"$f":"SUM(K139:K151)","v":75696400}]
["THỦ TỤC HÀNH CHÍNH 8: Khai thác và sử dụng dữ liệu định danh điện tử quốc gia"]
["I.","CHI PHÍ THỰC HIỆN TTHC DỰ KIẾN BAN HÀNH MỚI"]
[]
["STT","Các công việc \nkhi thực hiện TTHC","Các hoạt động/ cách thức thực hiện cụ thể","Thời gian thực hiện (giờ)","Mức TNBQ/ 01 giờ làm việc (đồng)","Mức chi phí thuê tư vấn, dịch vụ (đồng)","Mức phí, lệ phí, chi phí khác (đồng)","Số lần thực hiện/ 01 năm","Số lượng đối tượng tuân thủ/01 năm","Chi phí thực hiện TTHC (đồng)","Tổng chi phí thực hiện TTHC/\n01 năm (đồng)","Ghi chú"]
[1,"Chuẩn bị hồ sơ"]
[null,"Cá nhân, tổ chức chuẩn bị hồ sơ đề nghị Khai thác và sử dụng dữ liệu định danh điện tử quốc gia","Chuẩn bị hồ sơ",8,58228,null,null,1,500,{"$f":"G158+F158+(D158*E158)","v":465824},{"$f":"J158*I158*H158","v":232912000}]
[2,"Nộp hồ sơ","Trực tiếp",2,58228,null,null,1,200,{"$f":"G159+F159+(D159*E159)","v":116456},{"$f":"J159*I159*H159","v":23291200}]
[null,null,"Bưu chính",0,58228,null,null,1,null,0,0]
[null,null,"Điện tử",0.5,58228,null,null,1,300,29114,8734200]
[3,"Nộp phí, lệ phí, chi phí khác",null,null,58228,null,null,1,500,0,0]
["3.1","Phí",null,0.5,58228,null,null,1,500,29114,14557000,"Chưa có quy định cụ thể"]
["3.2","Lệ phí",null,0,58228,null,null,1,500,0,0]
["3.3","Chi phí khác",null,0,58228,null,null,1,500,0,0]
[4,"Chuẩn bị, phục vụ việc kiểm tra, đánh giá của cơ quan có thẩm quyền (nếu có)",null,0,58228,null,null,1,500,0,0]
[5,"Công việc khác (nếu có)",null,0,58228,null,null,1,500,0,0]
[6,"Nhận kết quả","Trực tiếp",0,58228,null,null,1,500,0,0]
[null,null,"Bưu chính",0,58228,null,null,1,500,0,0]
[null,null,"Điện tử",0.1,58228,null,null,1,500,5822.8,2911400]
[null,"TỔNG",null,null,null,{"$f":"SUM(F158:F166)","v":0},{"$f":"SUM(G158:G166)","v":0},null,null,{"$f":"SUM(J158:J170)","v":646330.80000000005},{"$f":"SUM(K158:K170)","v":282405800}]

{"sheet":"Tổng hợp","index":1,"n_rows":10,"n_cols":2,"rows_kept":10,"cut":false,"hidden":false,"merged":[]}
[null,"Chi phí dự kiến"]
["Thủ tục 1",{"$f":"'Chi phí dự kiến'!K30","v":31151980000000}]
["Thủ tục 2",{"$f":"'Chi phí dự kiến'!K52","v":18632960}]
["Thủ tục 3",{"$f":"'Chi phí dự kiến'!K72","v":50658360}]
["Thủ tục 4",{"$f":"'Chi phí dự kiến'!K92","v":64050800}]
["Thủ tục 5",{"$f":"'Chi phí dự kiến'!K112","v":20962080000000}]
["Thủ tục 6",{"$f":"'Chi phí dự kiến'!K132","v":302785600000}]
["Thủ tục 7",{"$f":"'Chi phí dự kiến'!K152","v":75696400}]
["Thủ tục 8",{"$f":"'Chi phí dự kiến'!K171","v":282405800}]
["Tổng cộng",{"$f":"SUM(B2:B9)","v":52417337044320}]